[Event "Late-Titled-Tuesday-Blitz-December-26-2023"]
[Site "Chess.com"]
[Date "2023.12.26"]
[Round "9"]
[White "Nick12772"]
[Black "b_6"]
[Result "0-1"]
[WhiteElo "2296"]
[BlackElo "2376"]
[TimeControl "180+1"]
[EndTime "15:38:38 PST"]
[Termination "b_6 won by resignation"]

1. Nf3 {[%clk 0:03:00.9]} 1... Nf6 {[%clk 0:02:59.8]} 2. g3 {[%clk 0:03:01.2]}
2... g6 {[%clk 0:03:00.2]} 3. Bg2 {[%clk 0:03:01.8]} 3... Bg7 {[%clk 0:03:00.8]}
4. O-O {[%clk 0:03:01.6]} 4... O-O {[%clk 0:03:01.3]} 5. c4 {[%clk 0:03:02.3]}
5... d6 {[%clk 0:03:01.2]} 6. Nc3 {[%clk 0:03:02.9]} 6... e5 {[%clk 0:03:01.4]}
7. d3 {[%clk 0:03:03.5]} 7... c6 {[%clk 0:02:59.4]} 8. Rb1 {[%clk 0:03:02.4]}
8... a5 {[%clk 0:02:59.1]} 9. a3 {[%clk 0:03:02.7]} 9... Re8 {[%clk 0:02:56.9]}
10. e4 {[%clk 0:03:02.7]} 10... Bg4 {[%clk 0:02:54.8]} 11. b4 {[%clk 0:03:02.7]}
11... axb4 {[%clk 0:02:54.3]} 12. axb4 {[%clk 0:03:03.6]} 12... Nbd7 {[%clk
0:02:49.4]} 13. b5 {[%clk 0:03:03.5]} 13... Nc5 {[%clk 0:02:47]} 14. Bg5 {[%clk
0:03:02.6]} 14... Ne6 {[%clk 0:02:42.1]} 15. Bxf6 {[%clk 0:03:01.3]} 15... Qxf6
{[%clk 0:02:38.4]} 16. h3 {[%clk 0:03:01.3]} 16... Bxf3 {[%clk 0:02:38.1]} 17.
Qxf3 {[%clk 0:02:55.6]} 17... Qxf3 {[%clk 0:02:31.4]} 18. Bxf3 {[%clk
0:02:56.5]} 18... Ra3 {[%clk 0:02:28.8]} 19. Rfc1 {[%clk 0:02:43.3]} 19... Bh6
{[%clk 0:02:27.3]} 20. bxc6 {[%clk 0:02:12.5]} 20... bxc6 {[%clk 0:02:23.1]} 0-1

[Event "Late-Titled-Tuesday-Blitz-December-26-2023"]
[Site "Chess.com"]
[Date "2023.12.26"]
[Round "9"]
[White "Fore_Man"]
[Black "Jesusesmifuerza"]
[Result "1-0"]
[WhiteElo "2387"]
[BlackElo "2202"]
[TimeControl "180+1"]
[EndTime "15:39:05 PST"]
[Termination "Fore_Man won by resignation"]

1. Nf3 {[%clk 0:03:00.9]} 1... d5 {[%clk 0:02:56.7]} 2. d4 {[%clk 0:03:01.5]}
2... Nf6 {[%clk 0:02:57.1]} 3. g3 {[%clk 0:03:02.2]} 3... e6 {[%clk 0:02:57.5]}
4. Bg2 {[%clk 0:03:03.1]} 4... c5 {[%clk 0:02:57.4]} 5. O-O {[%clk 0:03:04]}
5... Nc6 {[%clk 0:02:57.6]} 6. Bg5 {[%clk 0:02:57.9]} 6... cxd4 {[%clk
0:02:43.4]} 7. Nxd4 {[%clk 0:02:58.8]} 7... Nxd4 {[%clk 0:02:44]} 8. Qxd4 {[%clk
0:02:59]} 8... Be7 {[%clk 0:02:44.3]} 9. c4 {[%clk 0:02:58.7]} 9... dxc4 {[%clk
0:02:40.7]} 10. Qxc4 {[%clk 0:02:59.6]} 10... O-O {[%clk 0:02:40.5]} 11. Nc3
{[%clk 0:02:59.4]} 11... h6 {[%clk 0:02:39.5]} 12. Bf4 {[%clk 0:02:57.4]} 12...
g5 {[%clk 0:02:22.2]} 13. Bc7 {[%clk 0:02:55.3]} 13... Qe8 {[%clk 0:02:10.3]}
14. Nb5 {[%clk 0:02:48.6]} 14... a6 {[%clk 0:02:03.3]} 15. Nd6 {[%clk
0:02:48.5]} 15... Bxd6 {[%clk 0:02:03.5]} 16. Bxd6 {[%clk 0:02:49.4]} 16... Bd7
{[%clk 0:02:00.6]} 17. Bxf8 {[%clk 0:02:49.6]} 17... Qxf8 {[%clk 0:02:01.5]} 18.
Bxb7 {[%clk 0:02:49]} 18... Rb8 {[%clk 0:02:02.1]} 19. Bg2 {[%clk 0:02:44]}
19... Rxb2 {[%clk 0:02:00.4]} 20. Qd4 {[%clk 0:02:44.4]} 20... Qb4 {[%clk
0:01:51.8]} 21. Qxf6 {[%clk 0:02:43.7]} 21... Bb5 {[%clk 0:01:51.4]} 22. Qxh6
{[%clk 0:02:42.4]} 22... Rxe2 {[%clk 0:01:49.7]} 23. Qxg5+ {[%clk 0:02:42.2]}
23... Kf8 {[%clk 0:01:49]} 24. Rac1 {[%clk 0:02:42.1]} 24... Rxa2 {[%clk
0:01:43.9]} 25. Rc8+ {[%clk 0:02:41.4]} 25... Be8 {[%clk 0:01:43.1]} 26. Bc6
{[%clk 0:02:33]} 1-0

[Event "Late-Titled-Tuesday-Blitz-December-26-2023"]
[Site "Chess.com"]
[Date "2023.12.26"]
[Round "9"]
[White "Balla_Tamas"]
[Black "VitorBronson"]
[Result "0-1"]
[WhiteElo "2424"]
[BlackElo "2539"]
[TimeControl "180+1"]
[EndTime "15:39:40 PST"]
[Termination "VitorBronson won by resignation"]

1. e4 {[%clk 0:03:00.9]} 1... c5 {[%clk 0:03:00]} 2. c3 {[%clk 0:03:00.4]} 2...
Nf6 {[%clk 0:02:54.7]} 3. e5 {[%clk 0:03:00.2]} 3... Nd5 {[%clk 0:02:54.6]} 4.
d4 {[%clk 0:03:00.8]} 4... e6 {[%clk 0:02:54.7]} 5. Nf3 {[%clk 0:02:59.2]} 5...
cxd4 {[%clk 0:02:54.1]} 6. cxd4 {[%clk 0:03:00.1]} 6... Be7 {[%clk 0:02:53.8]}
7. a3 {[%clk 0:02:59.5]} 7... O-O {[%clk 0:02:53.3]} 8. Bd3 {[%clk 0:03:00]}
8... Nc6 {[%clk 0:02:51.8]} 9. O-O {[%clk 0:02:59.9]} 9... b6 {[%clk 0:02:51.6]}
10. Qe2 {[%clk 0:03:00]} 10... Bb7 {[%clk 0:02:51.6]} 11. Qe4 {[%clk 0:03:00]}
11... f5 {[%clk 0:02:51.7]} 12. exf6 {[%clk 0:02:55.3]} 12... Nxf6 {[%clk
0:02:51.7]} 13. Qe2 {[%clk 0:02:48.8]} 13... Qe8 {[%clk 0:02:50.3]} 14. Nc3
{[%clk 0:02:45.6]} 14... Qh5 {[%clk 0:02:49.6]} 15. Bf4 {[%clk 0:01:59]} 15...
Nd5 {[%clk 0:02:34.3]} 16. Nxd5 {[%clk 0:01:48.5]} 16... Qxd5 {[%clk 0:02:35.2]}
17. Be4 {[%clk 0:01:45.3]} 17... Nxd4 {[%clk 0:02:34.5]} 18. Qd2 {[%clk
0:01:07.8]} 18... Qxe4 {[%clk 0:02:22.4]} 0-1

[Event "Late-Titled-Tuesday-Blitz-December-26-2023"]
[Site "Chess.com"]
[Date "2023.12.26"]
[Round "9"]
[White "alertakobra"]
[Black "Bryanl106"]
[Result "0-1"]
[WhiteElo "2435"]
[BlackElo "2563"]
[TimeControl "180+1"]
[EndTime "15:40:18 PST"]
[Termination "Bryanl106 won on time"]

1. e4 {[%clk 0:03:00.9]} 1... e5 {[%clk 0:03:00.1]} 2. Nf3 {[%clk 0:03:00.9]}
2... Nc6 {[%clk 0:03:00.3]} 3. d4 {[%clk 0:03:01.4]} 3... exd4 {[%clk
0:03:00.6]} 4. Nxd4 {[%clk 0:03:02.3]} 4... Bb4+ {[%clk 0:03:01.3]} 5. c3 {[%clk
0:03:00.7]} 5... Bc5 {[%clk 0:03:01.7]} 6. Nb3 {[%clk 0:02:57]} 6... Bb6 {[%clk
0:03:01.8]} 7. Bd3 {[%clk 0:02:49.3]} 7... Nf6 {[%clk 0:03:01.3]} 8. a4 {[%clk
0:02:20.7]} 8... a6 {[%clk 0:02:58.3]} 9. Na3 {[%clk 0:02:19.7]} 9... d6 {[%clk
0:02:57.3]} 10. Nc4 {[%clk 0:02:19.2]} 10... Ba7 {[%clk 0:02:56.5]} 11. O-O
{[%clk 0:02:19.4]} 11... h6 {[%clk 0:02:56.4]} 12. Be3 {[%clk 0:02:11.1]} 12...
O-O {[%clk 0:02:50.6]} 13. Bxa7 {[%clk 0:02:10.9]} 13... Rxa7 {[%clk 0:02:51.5]}
14. a5 {[%clk 0:02:07.8]} 14... Be6 {[%clk 0:02:47.5]} 15. Re1 {[%clk
0:02:03.8]} 15... d5 {[%clk 0:02:42.4]} 16. exd5 {[%clk 0:02:00.3]} 16... Bxd5
{[%clk 0:02:41.1]} 17. Ne3 {[%clk 0:01:56.5]} 17... Bxb3 {[%clk 0:02:39]} 18.
Qxb3 {[%clk 0:01:56.3]} 18... Qxd3 {[%clk 0:02:39]} 0-1

[Event "Late-Titled-Tuesday-Blitz-December-26-2023"]
[Site "Chess.com"]
[Date "2023.12.26"]
[Round "9"]
[White "laskakid"]
[Black "ural58"]
[Result "1/2-1/2"]
[WhiteElo "2365"]
[BlackElo "2470"]
[TimeControl "180+1"]
[EndTime "15:40:58 PST"]
[Termination "Game drawn by repetition"]

1. d4 {[%clk 0:03:00.9]} 1... d5 {[%clk 0:01:51.7]} 2. c4 {[%clk 0:03:00.6]}
2... e5 {[%clk 0:01:47.7]} 3. dxe5 {[%clk 0:02:59.9]} 3... d4 {[%clk 0:01:30.2]}
4. Nf3 {[%clk 0:02:59.6]} 4... Nc6 {[%clk 0:01:29.8]} 5. Nbd2 {[%clk 0:02:57]}
5... a5 {[%clk 0:01:27.1]} 6. Nb3 {[%clk 0:02:44.6]} 6... Bg4 {[%clk 0:01:24.7]}
7. Nbxd4 {[%clk 0:02:35]} 7... Bc5 {[%clk 0:01:22.1]} 8. Nxc6 {[%clk 0:02:26.7]}
8... Bxf2+ {[%clk 0:01:18.7]} 9. Kxf2 {[%clk 0:02:26.4]} 9... Qxd1 {[%clk
0:01:19]} 10. Ncd4 {[%clk 0:02:16]} 10... O-O-O {[%clk 0:01:12.6]} 11. e3 {[%clk
0:02:10.8]} 11... Ne7 {[%clk 0:01:02.1]} 12. b3 {[%clk 0:02:10.3]} 12... Bxf3
{[%clk 0:00:52.6]} 13. gxf3 {[%clk 0:01:59.9]} 13... Rxd4 {[%clk 0:00:43.8]} 14.
Bh3+ {[%clk 0:01:59]} 14... Kb8 {[%clk 0:00:41]} 15. Rxd1 {[%clk 0:01:54.1]}
15... Rxd1 {[%clk 0:00:41]} 16. Bf1 {[%clk 0:01:43.2]} 16... Rhd8 {[%clk
0:00:27.3]} 17. Be2 {[%clk 0:01:43.2]} 17... Rh1 {[%clk 0:00:27]} 18. Kg2 {[%clk
0:01:42]} 18... Re1 {[%clk 0:00:23.8]} 19. Kf2 {[%clk 0:01:42.3]} 19... Rh1
{[%clk 0:00:23.9]} 20. Kg2 {[%clk 0:01:42.5]} 20... Re1 {[%clk 0:00:24]} 21. Kf2
{[%clk 0:01:42.9]} 21... Rh1 {[%clk 0:00:24]} 1/2-1/2

[Event "Late-Titled-Tuesday-Blitz-December-26-2023"]
[Site "Chess.com"]
[Date "2023.12.26"]
[Round "9"]
[White "enriquetejedor"]
[Black "dosto07"]
[Result "1-0"]
[WhiteElo "2722"]
[BlackElo "2529"]
[TimeControl "180+1"]
[EndTime "15:41:40 PST"]
[Termination "enriquetejedor won on time"]

1. b4 {[%clk 0:03:00.4]} 1... e5 {[%clk 0:02:57.3]} 2. Bb2 {[%clk 0:02:57.5]}
2... Bxb4 {[%clk 0:02:56.9]} 3. Bxe5 {[%clk 0:02:55.4]} 3... Nf6 {[%clk
0:02:57.1]} 4. Nf3 {[%clk 0:02:50.7]} 4... Nc6 {[%clk 0:02:56.8]} 5. Bb2 {[%clk
0:02:45.9]} 5... d5 {[%clk 0:02:56.6]} 6. e3 {[%clk 0:02:46.2]} 6... O-O {[%clk
0:02:53.9]} 7. Be2 {[%clk 0:02:46.4]} 7... Bg4 {[%clk 0:02:45.9]} 8. O-O {[%clk
0:02:47.3]} 8... Re8 {[%clk 0:02:44.3]} 9. a3 {[%clk 0:02:46.6]} 9... Bd6 {[%clk
0:02:42.5]} 10. h3 {[%clk 0:02:46.6]} 10... Bh5 {[%clk 0:02:42.3]} 11. Nc3
{[%clk 0:02:46.6]} 11... a6 {[%clk 0:02:31.1]} 12. Nh4 {[%clk 0:02:46.8]} 12...
Bxe2 {[%clk 0:02:29.4]} 13. Nxe2 {[%clk 0:02:47.7]} 13... Be5 {[%clk 0:02:22.8]}
14. Bxe5 {[%clk 0:02:47.8]} 14... Nxe5 {[%clk 0:02:22.4]} 15. Rb1 {[%clk
0:02:46.9]} 15... b5 {[%clk 0:02:19.8]} 16. Nd4 {[%clk 0:02:44.9]} 16... Qd7
{[%clk 0:02:04.7]} 17. Nhf3 {[%clk 0:02:44.4]} 17... Nxf3+ {[%clk 0:01:59.1]}
18. Nxf3 {[%clk 0:02:45.3]} 18... Qd6 {[%clk 0:01:54.6]} 19. a4 {[%clk
0:02:44.8]} 19... c6 {[%clk 0:01:49.1]} 20. c3 {[%clk 0:02:44.4]} 20... Ne4
{[%clk 0:01:45.1]} 21. Nd4 {[%clk 0:02:44.8]} 21... Nc5 {[%clk 0:01:39.2]} 22.
axb5 {[%clk 0:02:44.1]} 22... cxb5 {[%clk 0:01:38.2]} 23. Ra1 {[%clk 0:02:45]}
23... Ne6 {[%clk 0:01:27]} 24. Qg4 {[%clk 0:02:43.8]} 24... Nxd4 {[%clk
0:01:23.5]} 25. Qxd4 {[%clk 0:02:43]} 25... Re4 {[%clk 0:01:12.9]} 26. Qd3
{[%clk 0:02:42.9]} 26... Qc6 {[%clk 0:01:02.2]} 27. Ra5 {[%clk 0:02:40.3]} 27...
Qc4 {[%clk 0:00:51.4]} 28. Qxc4 {[%clk 0:02:39.6]} 28... Rxc4 {[%clk 0:00:51.1]}
29. Rfa1 {[%clk 0:02:39.7]} 29... g6 {[%clk 0:00:47.1]} 30. Rxa6 {[%clk
0:02:38.3]} 30... Rxa6 {[%clk 0:00:47.2]} 31. Rxa6 {[%clk 0:02:38.7]} 31... Ra4
{[%clk 0:00:44.1]} 32. Rd6 {[%clk 0:02:37.4]} 32... Ra1+ {[%clk 0:00:39.5]} 33.
Kh2 {[%clk 0:02:36.8]} 33... Rb1 {[%clk 0:00:32.6]} 34. Rxd5 {[%clk 0:02:37.1]}
34... Rb2 {[%clk 0:00:33]} 35. Kg3 {[%clk 0:02:36.8]} 35... Kg7 {[%clk 0:00:33]}
36. d4 {[%clk 0:02:37.1]} 36... h5 {[%clk 0:00:32.7]} 37. h4 {[%clk 0:02:37.5]}
37... Kf6 {[%clk 0:00:30.5]} 38. f3 {[%clk 0:02:37.9]} 38... Ke6 {[%clk
0:00:30.1]} 39. e4 {[%clk 0:02:38.5]} 39... Rb3 {[%clk 0:00:29.3]} 40. Re5+
{[%clk 0:02:38.5]} 40... Kf6 {[%clk 0:00:29.7]} 41. Rc5 {[%clk 0:02:38.9]} 41...
Ke6 {[%clk 0:00:28.2]} 42. d5+ {[%clk 0:02:39]} 42... Ke5 {[%clk 0:00:25.9]} 43.
Rc7 {[%clk 0:02:38.3]} 43... f5 {[%clk 0:00:22.7]} 44. Re7+ {[%clk 0:02:38.8]}
44... Kf6 {[%clk 0:00:20.5]} 45. Re6+ {[%clk 0:02:39.3]} 45... Kf7 {[%clk
0:00:19.6]} 46. Rc6 {[%clk 0:02:39.9]} 46... fxe4 {[%clk 0:00:19.3]} 47. fxe4
{[%clk 0:02:38.9]} 47... b4 {[%clk 0:00:19.6]} 48. Kf4 {[%clk 0:02:38.8]} 48...
bxc3 {[%clk 0:00:18]} 49. Ke5 {[%clk 0:02:37.9]} 49... Ke7 {[%clk 0:00:13.4]}
50. Rc7+ {[%clk 0:02:36.9]} 50... Kd8 {[%clk 0:00:13.2]} 51. d6 {[%clk
0:02:37.5]} 51... Rb4 {[%clk 0:00:07.6]} 52. Rxc3 {[%clk 0:02:36.5]} 52... Rb5+
{[%clk 0:00:06.8]} 53. Ke6 {[%clk 0:02:36.4]} 53... Rb6 {[%clk 0:00:05.7]} 54.
e5 {[%clk 0:02:36.6]} 54... Ra6 {[%clk 0:00:05.4]} 55. Rf3 {[%clk 0:02:37.1]}
1-0

[Event "Late-Titled-Tuesday-Blitz-December-26-2023"]
[Site "Chess.com"]
[Date "2023.12.26"]
[Round "9"]
[White "Cambek64"]
[Black "Dewarfd"]
[Result "1-0"]
[WhiteElo "2415"]
[BlackElo "2113"]
[TimeControl "180+1"]
[EndTime "15:41:46 PST"]
[Termination "Cambek64 won by resignation"]

1. d4 {[%clk 0:02:54.6]} 1... d5 {[%clk 0:02:52]} 2. c4 {[%clk 0:02:53.6]} 2...
e6 {[%clk 0:02:51.2]} 3. Nc3 {[%clk 0:02:52.8]} 3... c5 {[%clk 0:02:51.5]} 4.
cxd5 {[%clk 0:02:51.1]} 4... exd5 {[%clk 0:02:51.5]} 5. Nf3 {[%clk 0:02:51.8]}
5... Nc6 {[%clk 0:02:50.7]} 6. g3 {[%clk 0:02:52.2]} 6... Nf6 {[%clk 0:02:49.7]}
7. Bg2 {[%clk 0:02:52.5]} 7... cxd4 {[%clk 0:02:49.2]} 8. Nxd4 {[%clk
0:02:51.7]} 8... Bc5 {[%clk 0:02:49.4]} 9. Nxc6 {[%clk 0:02:50.9]} 9... bxc6
{[%clk 0:02:50.3]} 10. O-O {[%clk 0:02:50.8]} 10... O-O {[%clk 0:02:50.2]} 11.
b3 {[%clk 0:02:49.1]} 11... Bg4 {[%clk 0:02:38.8]} 12. Bb2 {[%clk 0:02:42.1]}
12... Re8 {[%clk 0:02:37.7]} 13. Re1 {[%clk 0:02:40.8]} 13... Bb4 {[%clk
0:02:37.1]} 14. a3 {[%clk 0:02:38.2]} 14... Ba5 {[%clk 0:02:34.1]} 15. b4 {[%clk
0:02:37.6]} 15... Bb6 {[%clk 0:02:34.2]} 16. Na4 {[%clk 0:02:38.2]} 16... Bf5
{[%clk 0:02:03.4]} 17. Bd4 {[%clk 0:02:36.3]} 17... Be4 {[%clk 0:01:59.7]} 18.
e3 {[%clk 0:02:34.5]} 18... Bxg2 {[%clk 0:01:57.5]} 19. Kxg2 {[%clk 0:02:35.1]}
19... Ne4 {[%clk 0:01:44.2]} 20. Rc1 {[%clk 0:02:29.1]} 20... Bxd4 {[%clk
0:01:03.1]} 21. Qxd4 {[%clk 0:02:26.3]} 21... Rc8 {[%clk 0:00:54.2]} 22. Nc5
{[%clk 0:02:22.1]} 22... Nxc5 {[%clk 0:00:31.1]} 23. Rxc5 {[%clk 0:02:20]} 23...
Re6 {[%clk 0:00:13.7]} 24. Rec1 {[%clk 0:02:16.4]} 24... Qe8 {[%clk 0:00:13.3]}
25. Qxd5 {[%clk 0:02:10.6]} 25... cxd5 {[%clk 0:00:11.1]} 26. Rxc8 {[%clk
0:02:09.7]} 26... h5 {[%clk 0:00:10.9]} 27. h4 {[%clk 0:02:08.1]} 27... g6
{[%clk 0:00:09.1]} 28. Rxe8+ {[%clk 0:02:05.9]} 28... Rxe8 {[%clk 0:00:08.9]}
29. Rc7 {[%clk 0:02:05.6]} 29... Rd8 {[%clk 0:00:04]} 30. Rxa7 {[%clk
0:02:03.9]} 30... d4 {[%clk 0:00:04.9]} 31. exd4 {[%clk 0:02:03.4]} 31... Rxd4
{[%clk 0:00:05.8]} 32. b5 {[%clk 0:02:03.5]} 32... Rd2 {[%clk 0:00:04.7]} 33. b6
{[%clk 0:02:01]} 33... Rb2 {[%clk 0:00:05.1]} 34. b7 {[%clk 0:02:01.2]} 34...
Kg7 {[%clk 0:00:04.8]} 35. a4 {[%clk 0:02:01.4]} 1-0

[Event "Late-Titled-Tuesday-Blitz-December-26-2023"]
[Site "Chess.com"]
[Date "2023.12.26"]
[Round "9"]
[White "Walter_White_Poland"]
[Black "Defenstrator"]
[Result "0-1"]
[WhiteElo "2293"]
[BlackElo "2466"]
[TimeControl "180+1"]
[EndTime "15:41:48 PST"]
[Termination "Defenstrator won on time"]

1. d4 {[%clk 0:02:59.5]} 1... Nf6 {[%clk 0:02:46.4]} 2. Bf4 {[%clk 0:02:59]}
2... Nh5 {[%clk 0:02:43.3]} 3. Bd2 {[%clk 0:02:10.7]} 3... Nf6 {[%clk
0:02:41.6]} 4. Nf3 {[%clk 0:02:02.3]} 4... Ne4 {[%clk 0:02:39.3]} 5. Nc3 {[%clk
0:01:57.8]} 5... Nxd2 {[%clk 0:02:37.5]} 6. Qxd2 {[%clk 0:01:58]} 6... d5 {[%clk
0:02:37.1]} 7. e4 {[%clk 0:01:56.9]} 7... dxe4 {[%clk 0:02:36.8]} 8. Nxe4 {[%clk
0:01:56.9]} 8... Bf5 {[%clk 0:02:30.9]} 9. Ng3 {[%clk 0:01:55.3]} 9... Bg6
{[%clk 0:02:27.3]} 10. h4 {[%clk 0:01:54.9]} 10... h6 {[%clk 0:02:23.5]} 11. Bc4
{[%clk 0:01:42.2]} 11... e6 {[%clk 0:02:21.6]} 12. Ne5 {[%clk 0:01:41.8]} 12...
Bh7 {[%clk 0:02:17.1]} 13. O-O-O {[%clk 0:01:41.1]} 13... Nd7 {[%clk 0:02:13.3]}
14. Nxf7 {[%clk 0:01:20]} 14... Kxf7 {[%clk 0:02:10]} 15. Rde1 {[%clk
0:01:02.1]} 15... Bd6 {[%clk 0:01:53]} 16. Rxe6 {[%clk 0:00:45.8]} 16... Kf8
{[%clk 0:01:43.4]} 17. Nh5 {[%clk 0:00:13.7]} 17... Bg8 {[%clk 0:01:26]} 18.
Rxd6 {[%clk 0:00:08.5]} 18... cxd6 {[%clk 0:01:15.7]} 19. Qf4+ {[%clk 0:00:04]}
19... Nf6 {[%clk 0:01:15.7]} 20. Bd3 {[%clk 0:00:02.3]} 20... Bf7 {[%clk
0:01:13.4]} 0-1

[Event "Late-Titled-Tuesday-Blitz-December-26-2023"]
[Site "Chess.com"]
[Date "2023.12.26"]
[Round "9"]
[White "gahryman"]
[Black "ccccvhhhj"]
[Result "1-0"]
[WhiteElo "2655"]
[BlackElo "2497"]
[TimeControl "180+1"]
[EndTime "15:42:11 PST"]
[Termination "gahryman won on time"]

1. e4 {[%clk 0:03:00.9]} 1... e6 {[%clk 0:02:10.3]} 2. d4 {[%clk 0:02:58.5]}
2... d5 {[%clk 0:02:11.2]} 3. e5 {[%clk 0:02:59]} 3... c5 {[%clk 0:02:11.2]} 4.
Nf3 {[%clk 0:02:59.9]} 4... Nc6 {[%clk 0:02:12]} 5. Bd3 {[%clk 0:03:00.4]} 5...
Bd7 {[%clk 0:02:10.9]} 6. O-O {[%clk 0:03:00.4]} 6... cxd4 {[%clk 0:02:07.2]} 7.
Nbd2 {[%clk 0:03:00]} 7... Bc5 {[%clk 0:01:48]} 8. Nb3 {[%clk 0:02:57.2]} 8...
Bb6 {[%clk 0:01:48.2]} 9. h4 {[%clk 0:02:49.3]} 9... h6 {[%clk 0:01:44.8]} 10.
h5 {[%clk 0:02:49.1]} 10... Nge7 {[%clk 0:01:45.3]} 11. a4 {[%clk 0:02:46.8]}
11... a6 {[%clk 0:01:28.6]} 12. Re1 {[%clk 0:02:44.2]} 12... Qc7 {[%clk
0:01:23.4]} 13. Bd2 {[%clk 0:02:36.6]} 13... O-O-O {[%clk 0:01:22.9]} 14. a5
{[%clk 0:02:34.7]} 14... Ba7 {[%clk 0:01:23]} 15. c3 {[%clk 0:02:21]} 15... dxc3
{[%clk 0:01:19.1]} 16. Bxc3 {[%clk 0:02:21]} 16... g5 {[%clk 0:01:16.9]} 17. Rc1
{[%clk 0:02:16.4]} 17... Kb8 {[%clk 0:01:14.4]} 18. Bb4 {[%clk 0:02:11.3]} 18...
Nc8 {[%clk 0:01:08.4]} 19. Nfd4 {[%clk 0:02:04.8]} 19... Ka8 {[%clk 0:01:05.8]}
20. Nxc6 {[%clk 0:01:59.8]} 20... Bxc6 {[%clk 0:01:06]} 21. Bc5 {[%clk
0:01:59.1]} 21... Qd7 {[%clk 0:00:51.1]} 22. Nd4 {[%clk 0:01:52.3]} 22... Bxc5
{[%clk 0:00:49.2]} 23. Rxc5 {[%clk 0:01:51.8]} 23... Na7 {[%clk 0:00:49.8]} 24.
b4 {[%clk 0:01:50.2]} 24... Rc8 {[%clk 0:00:39.1]} 25. Qf3 {[%clk 0:01:48.6]}
25... Nb5 {[%clk 0:00:17.4]} 26. Bxb5 {[%clk 0:01:47.7]} 26... Bxb5 {[%clk
0:00:18.3]} 27. Qf6 {[%clk 0:01:45]} 27... Rh7 {[%clk 0:00:09.3]} 28. Rec1
{[%clk 0:01:41.1]} 28... Rxc5 {[%clk 0:00:09.3]} 29. Rxc5 {[%clk 0:01:42]} 29...
Bd3 {[%clk 0:00:05.9]} 30. f3 {[%clk 0:01:39.4]} 30... Ka7 {[%clk 0:00:03.4]}
31. Kf2 {[%clk 0:01:34.4]} 31... Qa4 {[%clk 0:00:03.5]} 32. Qe7 {[%clk
0:01:24.9]} 32... Qxb4 {[%clk 0:00:01.4]} 33. Nc6+ {[%clk 0:01:22.9]} 1-0

[Event "Late-Titled-Tuesday-Blitz-December-26-2023"]
[Site "Chess.com"]
[Date "2023.12.26"]
[Round "9"]
[White "TanitoluwaAps116"]
[Black "Mikhail_Golubev"]
[Result "1-0"]
[WhiteElo "2762"]
[BlackElo "2625"]
[TimeControl "180+1"]
[EndTime "15:42:12 PST"]
[Termination "TanitoluwaAps116 won on time"]

1. e4 {[%clk 0:02:45.7]} 1... c5 {[%clk 0:02:58.8]} 2. Nf3 {[%clk 0:02:45.6]}
2... d6 {[%clk 0:02:59]} 3. Bb5+ {[%clk 0:02:45.5]} 3... Bd7 {[%clk 0:02:58.3]}
4. Bxd7+ {[%clk 0:02:45.4]} 4... Nxd7 {[%clk 0:02:56.1]} 5. O-O {[%clk
0:02:46.3]} 5... Ngf6 {[%clk 0:02:55.7]} 6. Qe2 {[%clk 0:02:47.2]} 6... e6
{[%clk 0:02:52.9]} 7. b3 {[%clk 0:02:47.4]} 7... g6 {[%clk 0:02:51.9]} 8. c4
{[%clk 0:02:47]} 8... Bg7 {[%clk 0:02:51]} 9. Bb2 {[%clk 0:02:47.6]} 9... O-O
{[%clk 0:02:51]} 10. d4 {[%clk 0:02:47.3]} 10... cxd4 {[%clk 0:02:50.2]} 11.
Nxd4 {[%clk 0:02:47.8]} 11... Nh5 {[%clk 0:02:49.6]} 12. Rd1 {[%clk 0:02:44.4]}
12... d5 {[%clk 0:02:29.4]} 13. cxd5 {[%clk 0:02:40.1]} 13... exd5 {[%clk
0:02:30.3]} 14. exd5 {[%clk 0:02:33.4]} 14... Nb6 {[%clk 0:02:23.1]} 15. Nc3
{[%clk 0:02:24.1]} 15... Nxd5 {[%clk 0:02:13.8]} 16. Nf5 {[%clk 0:01:58.6]}
16... Bxc3 {[%clk 0:00:24.8]} 17. Rxd5 {[%clk 0:01:40.6]} 17... Nf4 {[%clk
0:00:16.1]} 18. Ne7+ {[%clk 0:01:10.2]} 18... Kg7 {[%clk 0:00:16.1]} 19. Bxc3+
{[%clk 0:01:09.1]} 19... f6 {[%clk 0:00:16.3]} 20. Qf3 {[%clk 0:00:53.7]} 20...
Nxd5 {[%clk 0:00:16.2]} 21. Nxd5 {[%clk 0:00:54]} 21... Rc8 {[%clk 0:00:16.4]}
22. Rd1 {[%clk 0:00:52.6]} 1-0

[Event "Late-Titled-Tuesday-Blitz-December-26-2023"]
[Site "Chess.com"]
[Date "2023.12.26"]
[Round "9"]
[White "vladoboch"]
[Black "WPWPWP-2015"]
[Result "0-1"]
[WhiteElo "2433"]
[BlackElo "2595"]
[TimeControl "180+1"]
[EndTime "15:42:26 PST"]
[Termination "WPWPWP-2015 won by resignation"]

1. e4 {[%clk 0:02:50.8]} 1... e5 {[%clk 0:02:59.9]} 2. Nf3 {[%clk 0:02:50.7]}
2... Nc6 {[%clk 0:03:00.3]} 3. Bc4 {[%clk 0:02:51.5]} 3... Nf6 {[%clk
0:03:00.3]} 4. d3 {[%clk 0:02:51.9]} 4... Be7 {[%clk 0:02:59.8]} 5. O-O {[%clk
0:02:51.5]} 5... O-O {[%clk 0:02:59.8]} 6. Re1 {[%clk 0:02:52.2]} 6... d6 {[%clk
0:02:59.3]} 7. a4 {[%clk 0:02:52.8]} 7... Be6 {[%clk 0:02:59]} 8. Na3 {[%clk
0:02:42.8]} 8... h6 {[%clk 0:02:58]} 9. c3 {[%clk 0:02:42.6]} 9... Qd7 {[%clk
0:02:57.7]} 10. h3 {[%clk 0:02:37.1]} 10... a6 {[%clk 0:02:56.9]} 11. b4 {[%clk
0:02:33.4]} 11... Rae8 {[%clk 0:02:53.7]} 12. b5 {[%clk 0:02:29.5]} 12... Nb8
{[%clk 0:02:47.4]} 13. Qb3 {[%clk 0:02:21.8]} 13... a5 {[%clk 0:02:44.2]} 14. b6
{[%clk 0:02:15.5]} 14... c6 {[%clk 0:02:41.6]} 15. Bxe6 {[%clk 0:02:14]} 15...
fxe6 {[%clk 0:02:34.7]} 16. Nc4 {[%clk 0:02:14.1]} 16... Na6 {[%clk 0:02:14.5]}
17. Be3 {[%clk 0:02:08.9]} 17... Nh5 {[%clk 0:02:10.9]} 18. Nxa5 {[%clk
0:02:03.2]} 18... Rxf3 {[%clk 0:02:07.3]} 19. gxf3 {[%clk 0:02:04.1]} 19... Bg5
{[%clk 0:02:04.1]} 20. Kf1 {[%clk 0:01:55.6]} 20... Qf7 {[%clk 0:01:52.6]} 21.
Qd1 {[%clk 0:01:32.4]} 21... Rf8 {[%clk 0:01:48.7]} 22. Nc4 {[%clk 0:01:13.6]}
22... Nf4 {[%clk 0:01:33.9]} 23. Bxf4 {[%clk 0:01:10.1]} 23... Qxf4 {[%clk
0:01:31.2]} 24. Kg2 {[%clk 0:00:31.2]} 24... Bh4 {[%clk 0:01:22.6]} 25. Rg1
{[%clk 0:00:29.3]} 25... d5 {[%clk 0:01:16.6]} 26. Ne3 {[%clk 0:00:24.3]} 26...
Nc5 {[%clk 0:01:12.5]} 27. Qe2 {[%clk 0:00:15.8]} 27... Nxd3 {[%clk 0:01:05.7]}
28. Qxd3 {[%clk 0:00:14.3]} 28... Qxf3+ {[%clk 0:01:05.3]} 29. Kh2 {[%clk
0:00:13.6]} 29... Bxf2 {[%clk 0:01:04.2]} 30. Rg2 {[%clk 0:00:07.1]} 30... Bxe3
{[%clk 0:01:02.1]} 31. exd5 {[%clk 0:00:04.5]} 31... Bf4+ {[%clk 0:01:00.5]} 0-1